[Event "MCC Labor Day Schev 2024"]
[Site "New York"]
[Date "2024.09.01"]
[Round "6.8"]
[White "Martin Del Campo Cardenas, Roberto Abel"]
[Black "Sloan, Jed"]
[Result "1-0"]
[ECO "B15"]
[WhiteElo "2216"]
[BlackElo "2039"]
[Annotator "TA"]
[PlyCount "79"]
[EventDate "2024.08.28"]
[EventType "schev"]
[EventCountry "USA"]
[SourceTitle "playchess.com"]
[Source "ChessBase"]
[SourceQuality "1"]
[TimeControl "5400+30"]

{[%evp 14,79,24,24,26,15,29,33,46,29,40,2,136,140,420,429,408,0,46,22,103,108,120,81,231,212,246,277,252,231,228,243,239,234,223,-41,-21,-190,-187,-190,-194,-196,83,89,85,88,139,156,161,159,186,186,194,193,427,435,415,435,416,411,393,382,1601,1677,1196,991,898,887]} 1. e4 {[%emt 0:12:01]} c6 {[%emt 0:00:04]} 2. d4 {[%emt 0:00:56]} d5 {[%emt 0:00:02]} 3. Nd2 {[%emt 0:00:07]} dxe4 {[%emt 0:00:08]} 4. Nxe4 {[%emt 0:00:03]} Nf6 {[%emt 0:00:15]} 5. Nxf6+ {[%emt 0:02:12]} exf6 {[%emt 0:00:02]} 6. c3 {[%emt 0:00:17]} Bd6 {[%emt 0:00:14]} 7. Bd3 {[%emt 0:01:12]} O-O {[%emt 0:00:25]} 8. Qc2 {[%emt 0:00:25] Active counter play!} Re8+ {[%emt 0:00:19]} 9. Ne2 {[%emt 0:00:09]} h5 {[%emt 0:00:27]} 10. O-O {[%emt 0:02:13]} h4 {[%emt 0:01:14] White is slightly better.} 11. h3 {[%emt 0:02:21]} Nd7 {[%emt 0:00:47]} 12. f4 {[%emt 0:04:43][%cal Bf2f4,Bf4f5][%mdl 32]} g6 {[%emt 0:28:23]} (12... c5 $11 {remains equal.}) 13. Bxg6 $1 $16 {[%emt 0:30:00]} (13. f5 $6 g5 $11) 13... fxg6 {[%emt 0:00:33][%mdl 8192]} (13... Nf8 $16 {was worth a try.} 14. Bd3 f5) 14. Qxg6+ $18 {[%emt 0:00:06]} Kh8 {[%emt 0:00:32][%cal Oe8e7]} 15. Qh6+ $2 {[%emt 0:06:22]} ({White has to play} 15. Qh5+ $1 $18 Kg8 16. Qg4+ Kf7 17. f5) 15... Kg8 $14 {[%emt 0:00:09] Strongly threatening ...Nf8.} 16. f5 $1 {[%emt 0:00:13] Threatens to win with Qg6+.} Re4 {[%emt 0:23:34]} (16... Rxe2 $2 17. Qg6+ Kh8 (17... Kf8 $2 18. Bh6+ Ke7 19. Rae1 $18) 18. Qh5+ Kg8 19. Qg4+ (19. Qxe2 Qe7 $18) 19... Kh8 20. Qxh4+ (20. Qxe2 Qe7 $18) 20... Kg8 21. Qg4+ Kh8 22. Qxe2 $18) (16... Re7 $11) 17. Bf4 $16 {[%emt 0:02:54]} Nf8 {[%emt 0:13:16][%cal Bd7f8,Bf8h7,Bh7g5][%mdl 32]} (17... Qf8 $2 18. Qxh4 Nb6 19. Rae1 $18) 18. Qxh4 {[%emt 0:06:23]} Bxf4 {[%emt 0:01:17]} (18... Rxe2 $2 19. Qg4+ Kh8 20. Qxe2 $18) (18... Nh7 $16) 19. Qg4+ $18 {[%emt 0:00:52]} (19. Rxf4 Rxf4 20. Qxf4 Qe7 $11) 19... Kh8 {[%emt 0:06:11]} 20. Nxf4 {[%emt 0:01:44]} (20. Rxf4 Re7 $14) 20... Qe7 {[%emt 0:01:24]} 21. Qh4+ {[%emt 0:01:21]} Kg8 {[%emt 0:09:55]} 22. Rf3 $1 {[%emt 0:03:34][%mdl 1024] White wants to mate with Rg3+. White has strong compensation.} Nh7 {[%emt 0:01:02] [#]} (22... Bxf5 $2 23. Rg3+ $18) 23. Rg3+ $1 {[%emt 0:09:17]} Ng5 {[%emt 0:00:19] [#]} 24. Qg4 {[%emt 0:00:05]} (24. Rf1 $1 $18 {And now Qh6 would win.} Bxf5 25. Qh6) 24... Qh7 $15 {[%emt 0:01:42]} 25. h4 $2 {[%emt 0:04:29]} (25. Qh5 Qxh5 (25... Rxf4 $2 26. Qe8+ Kg7 27. Re1 $18) (25... Bxf5 26. Rf1 $11) 26. Nxh5 Kf7 $15 (26... Bxf5 $2 27. Nxf6+ Kf7 28. Nxe4 $18)) (25. Rf1 $1 $11 {and White is okay.} Bxf5 (25... Qxf5 $2 26. Qxf5 Bxf5 27. h4 $18) 26. Qh5) 25... Bxf5 $19 {[%emt 0:01:13]} (25... Qxf5 $2 26. Qxf5 Bxf5 27. Rf1 $18 (27. hxg5 $2 {loses.} Rxf4 28. gxf6+ Kf7 $19)) 26. Qf3 {[%emt 0:00:08]} Qxh4 {[%emt 0:05:07]} 27. Nh5 {[%emt 0:00:03]} Kf7 $2 {[%emt 0:01:26]} (27... Re7 $19 {[%cal Oa8f8] Hoping for ...Rf8!} 28. Qxf5 Qxh5 29. Qxf6 Rg7) 28. Qxf5 $16 {[%emt 0:00:14]} Qxh5 {[%emt 0:00:40]} 29. Rf1 $36 {[%emt 0:01:55][%csl LRf6,LRg5][%cal Ba1f1,Bf1e1,Be1e7,Be7e8,Be8f8][%mdl 2080] Keeping Black busy. Some like it hot} Rh8 {[%emt 0:02:20]} 30. Qxf6+ {[%emt 0:01:25]} (30. Rxg5 $2 Qh2+ 31. Kf2 Rf4+ 32. Ke1 Rxf5 $19) 30... Ke8 {[%emt 0:00:06]} 31. Qxg5 {[%emt 0:00:16]} Qh2+ {[%emt 0:01:00]} 32. Kf2 {[%emt 0:00:06] Qg6+ is the strong threat.} Rf8+ {[%emt 0:00:23]} 33. Rf3 {[%emt 0:00:06]} Ref4 $2 {[%emt 0:00:34]} (33... Rxf3+ 34. Kxf3 Re7) 34. Re1+ $18 {[%emt 0:01:12]} Kd7 {[%emt 0:00:05]} 35. Re7+ {[%emt 0:03:24]} Kc8 {[%emt 0:00:13] [#]} 36. Qg4+ {[%emt 0:00:57][%mdl 512]} Kb8 {[%emt 0:00:22]} 37. Re8+ {[%emt 0:00:08]} Kc7 $2 {[%emt 0:00:12]} (37... Rxe8 38. Qxf4+ Qxf4 39. Rxf4 a5) 38. Qc8+ {[%emt 0:00:13] White is clearly winning.} (38. Rxf8 $2 {is the wrong capture.} Rxg4 39. Ke3 Qxg2 40. R8f7+ Kb6 $19) 38... Kb6 {[%emt 0:00:03]} 39. Qd8+ {[%emt 0:00:07]} Ka6 {[%emt 0:00:11]} 40. Rxf8 {[%emt 0:00:06] Weighted Error Value: White=0.34/Black=0.62.  Loses game:     	White=1     	Black=1      Missed win:     	White=2     	Black=1      Mistake:       	---       	Black=6      Inaccurate:     	White=2     	Black=1      OK:         	White=10    	Black=7      Best:        	White=6     	Black=10     Strong:       	White=4     	---} 1-0

[Event "MCC Labor Day Schev 2024"]
[Site "New York"]
[Date "2024.09.01"]
[Round "6.9"]
[White "Hoffman, Luc"]
[Black "Khodzhamkuliev, Bahadur"]
[Result "1/2-1/2"]
[ECO "E90"]
[WhiteElo "2067"]
[BlackElo "2187"]
[Annotator "TA"]
[PlyCount "45"]
[EventDate "2024.08.28"]
[EventType "schev"]
[EventCountry "USA"]
[SourceTitle "playchess.com"]
[Source "ChessBase"]
[SourceQuality "1"]
[TimeControl "5400+30"]

{[%evp 13,45,42,58,54,69,65,75,61,86,67,146,133,147,108,100,105,141,81,68,83,66,66,151,101,190,120,121,61,83,22,24,9,6,0]} 1. e4 {[%emt 0:00:02]} d6 {[%emt 0:07:49]} 2. d4 {[%emt 0:00:14][%cal Bd2d4,Bd4d5][%mdl 32]} Nc6 {[%emt 0:00:05]} 3. d5 {[%emt 0:00:06]} Nb8 {[%emt 0:00:04]} 4. c4 {[%emt 0:00:04]} Nf6 {[%emt 0:00:28]} 5. Nc3 {[%emt 0:00:18]} g6 {[%emt 0:00:07]} 6. h3 {[%emt 0:00:05]} Bg7 {[%emt 1:24:57]} 7. Nf3 O-O 8. Bd3 c6 9. O-O a6 10. Be3 {White is better.} b5 11. cxb5 cxd5 (11... axb5 $14 12. dxc6 Ba6 (12... b4 13. Nd5 $11)) 12. exd5 $16 Bb7 13. Bd4 {White is more active.} axb5 14. Bxb5 Nbd7 {[%emt 0:00:00]} 15. Qb3 {[%emt 0:04:04]} (15. a4 $142) 15... Nc5 {[%emt 0:00:00]} 16. Bxc5 {[%emt 0:00:30]} dxc5 {[%emt 0:00:00]} 17. Rad1 {[%emt 0:00:30]} Qa5 {[%emt 0:00:00]} ({Black should try} 17... Qc7 $1 $14) 18. Ne5 {[%emt 0:00:30]} (18. Rfe1 $142) 18... Rfb8 {[%emt 0:00:00]} (18... Qb4 $16 {was worth a try.}) 19. Rfe1 {[%emt 0:00:30]} (19. a4 $18) 19... Qb4 {[%emt 0:00:00]} 20. Bc4 {[%emt 0:00:30]} (20. Bc6 $16) 20... Ne8 {[%emt 0:00:00] [#]} 21. d6 {[%emt 0:00:30]} Qxb3 $11 {[%emt 0:00:00]} 22. Bxb3 {[%emt 0:00:30]} Nxd6 {[%emt 0:00:00] [#]} 23. Nxf7 $1 {[%emt 0:00:30] Weighted Error Value: White=0.33/Black=0.25 (precise) .  Mistake:       	White=5     	Black=3      Inaccurate:     	---       	Black=1      OK:         	White=3     	Black=3      Best:        	---       	Black=2} 1/2-1/2

[Event "MCC Labor Day Schev 2024"]
[Site "New York"]
[Date "2024.09.01"]
[Round "7.1"]
[White "Sloan, Jed"]
[Black "Rohde, Michael"]
[Result "1/2-1/2"]
[ECO "B41"]
[WhiteElo "2039"]
[BlackElo "2280"]
[Annotator "TA"]
[PlyCount "30"]
[EventDate "2024.08.28"]
[EventType "schev"]
[EventCountry "USA"]
[SourceTitle "playchess.com"]
[Source "ChessBase"]
[SourceQuality "1"]
[TimeControl "5400+30"]

{[%evp 17,30,27,44,18,34,14,30,40,39,28,32,31,38,37,21]} 1. e4 {[%emt 0:00:01]} c5 {[%emt 0:00:41]} 2. Nf3 {[%emt 0:00:02]} e6 {[%emt 0:00:06]} 3. d4 {[%emt 0:00:04]} cxd4 {[%emt 0:00:04]} 4. Nxd4 {[%emt 0:00:05]} a6 {[%emt 0:00:03]} 5. c4 {[%emt 0:00:12]} Nf6 {[%emt 0:00:07]} 6. Nc3 {[%emt 0:00:04]} Qc7 {[%emt 0:00:11]} 7. a3 {[%emt 0:00:20]} d6 {[%emt 0:00:33]} 8. Bd3 {[%emt 0:00:30]} Be7 {[%emt 0:00:58]} 9. O-O {[%emt 0:02:37]} O-O {[%emt 0:01:30]} 10. f4 {[%emt 0:04:12]} Nc6 {[%emt 0:00:51]} 11. Be3 {[%emt 0:06:37]} Nxd4 {[%emt 0:04:10]} 12. Bxd4 {[%emt 0:00:30]} e5 {[%emt 0:00:30]} 13. Be3 {[%emt 0:00:30]} Ng4 {[%emt 0:00:30]} 14. Nd5 {[%emt 0:00:30]} Nxe3 {[%emt 0:00:30]} 15. Nxc7 {[%emt 0:00:30]} Nxd1 {[%emt 0:00:30] Weighted Error Value: White=0.12 (very precise) /Black=0.03 (flawless) .  OK:         	White=3     	Black=4      Best:        	---       	Black=1} 1/2-1/2

[Event "MCC Labor Day Schev 2024"]
[Site "New York"]
[Date "2024.09.02"]
[Round "7.2"]
[White "Podavonov, Alisher"]
[Black "Shangin, Lev"]
[Result "1-0"]
[ECO "E46"]
[WhiteElo "2140"]
[BlackElo "1974"]
[Annotator "TA"]
[PlyCount "107"]
[EventDate "2024.08.28"]
[EventType "schev"]
[EventCountry "USA"]
[SourceTitle "playchess.com"]
[Source "ChessBase"]
[SourceQuality "1"]
[TimeControl "5400+30"]

{[%evp 9,107,-3,2,-18,-16,-55,-49,-69,-56,-104,-87,-69,-50,-62,-55,-108,-73,-118,-95,-82,-63,-87,-46,-50,-41,-119,-125,-161,0,0,0,0,0,0,0,0,0,-52,0,-78,0,0,45,-81,-79,-82,-80,-97,-93,-96,-76,-80,-85,-115,-94,-95,-93,-121,-118,-109,-95,-142,-105,-156,-151,-152,-110,-106,-106,-132,-124,-118,-75,-116,-84,-97,-61,-63,0,-20,0,-16,0,0,64,67,125,128,277,289,286,297,617,645,652,662,662,659,714,697]} 1. d4 {[%emt 0:00:01]} Nf6 {[%emt 0:00:12]} 2. c4 {[%emt 0:00:02]} e6 {[%emt 0:00:28]} 3. Nc3 {[%emt 0:00:03]} Bb4 {[%emt 0:00:42]} 4. e3 {[%emt 0:00:04]} O-O {[%emt 0:02:21]} 5. Nge2 {[%emt 0:00:06]} Re8 {[%emt 0:03:30]} 6. g3 {[%emt 0:03:57]} d5 {[%emt 0:01:47]} 7. cxd5 {[%emt 0:00:13]} Qxd5 {[%emt 0:02:22]} 8. Rg1 {[%emt 0:00:20] Black is slightly better.} e5 {[%emt 0:09:14]} 9. Bg2 {[%emt 0:01:59]} (9. Bd2 $15 Qe6 10. Bg2) 9... Qd6 {[%emt 0:01:10]} 10. a3 {[%emt 0:10:17]} Ba5 {[%emt 0:04:05]} 11. dxe5 {[%emt 0:13:44]} Qxe5 {[%emt 1:10:09]} 12. Qd4 {[%emt 0:00:40]} ({White should play} 12. b4 $15 Bb6 13. Bb2) 12... Qe7 {[%emt 0:00:00]} 13. Qa4 {[%emt 0:04:29]} Bb6 {[%emt 0:00:00][%cal Ob8c6]} 14. Bd2 {[%emt 0:01:17]} Nbd7 {[%emt 0:00:00]} 15. O-O-O {[%emt 0:03:52]} Nc5 {[%emt 0:00:00]} 16. Qc2 {[%emt 0:00:37]} c6 {[%emt 0:00:00]} 17. Be1 {[%emt 0:12:57]} (17. Nd4 $15) 17... Bg4 $17 {[%emt 0:00:00]} 18. Rd2 {[%emt 0:03:50]} Bh5 $2 {[%emt 0:00:00]} (18... a5 $19 {...a4 would now be deadly.} 19. Kb1 g6) 19. Nf4 $11 {[%emt 0:00:36]} Bg6 {[%emt 0:00:00]} 20. Nxg6 {[%emt 0:00:04]} hxg6 {[%emt 0:00:00]} 21. Kb1 {[%emt 0:05:03]} Qe6 {[%emt 0:00:00]} 22. Rd1 {[%emt 0:07:29]} Rad8 $36 {[%emt 0:00:00][%mdl 2048] Black has the initiative.} 23. Bd2 {[%emt 0:03:05]} (23. Rxd8 $11 Rxd8 24. Bf3) 23... Qf5 {[%emt 0:00:00]} (23... Ng4 $15 24. Bh3 Qf5 25. Qxf5 gxf5 26. Bxg4 fxg4) 24. f3 {[%emt 0:05:14]} (24. Rgf1 $11) 24... Qxc2+ {[%emt 0:00:00]} (24... Nb3 $17 25. e4 Nxd2+ 26. Rxd2 Rxd2 27. Qxd2 Qh5) 25. Kxc2 {[%emt 0:00:01]} Nd3 {[%emt 0:07:00][%cal Oa7a6]} 26. Bf1 {[%emt 0:01:24] [#]} (26. Na4 $1 $14) 26... Ne5 $1 $17 {[%emt 0:00:00][%cal Od8d2] White must now prevent ...Rxd2+! A dynamic duo of knights.} (26... Bxe3 $2 27. Bxe3 (27. Bxd3 Bxg1 28. Rxg1 Nd7 $16) 27... Rxe3 28. Bxd3 $16 (28. Rxd3 Rdxd3 29. Bxd3 Rxf3 $18)) 27. Be2 {[%emt 0:02:44] [#]} Ned7 $1 {[%emt 0:00:00]} 28. Kd3 {[%emt 0:07:23]} Nf8+ {[%emt 0:00:00]} 29. Kc2 {[%emt 0:00:12]} Rd7 {[%emt 0:00:00]} 30. Rg2 {[%emt 0:04:49]} Bxe3 {[%emt 0:00:00]} 31. Be1 {[%emt 0:00:05]} Bb6 {[%emt 0:00:00]} 32. Rxd7 {[%emt 0:01:58]} N8xd7 {[%emt 0:00:00]} 33. Na4 {[%emt 0:02:17]} Nd5 {[%emt 0:00:00] Hoping for ...Ne3+.} 34. Bd2 {[%emt 0:00:05]} Be3 {[%emt 0:00:00]} 35. Bb4 {[%emt 0:03:08]} (35. Bc4 $142) 35... N7b6 {[%emt 0:00:00]} 36. Kb3 {[%emt 0:01:01]} ({Better is} 36. Nxb6 axb6 (36... Nxb4+ 37. axb4 Bxb6 38. b5 $17) 37. Bc3) 36... Nxa4 {[%emt 0:00:00]} 37. Kxa4 {[%emt 0:00:02]} b5+ {[%emt 0:00:00]} 38. Kb3 {[%emt 0:00:37]} c5 {[%emt 0:00:00]} 39. Ba5 {[%emt 0:00:44]} (39. Bxb5 $2 Rb8 40. Be1 Rxb5+ $19) 39... c4+ {[%emt 0:00:00]} 40. Ka2 {[%emt 0:00:04]} Bd4 {[%emt 0:00:00]} 41. Bd2 {[%emt 0:00:19]} a6 {[%emt 0:00:00]} 42. f4 {[%emt 0:01:13]} Nb6 {[%emt 0:00:00]} 43. Bd1 {[%emt 0:02:11]} Nd5 {[%emt 0:00:00]} ({Black should try} 43... Nd7 $15 44. Re2 Rxe2 45. Bxe2 Nc5) 44. Bf3 {[%emt 0:00:20]} Nb6 {[%emt 0:00:00]} 45. Bb7 {[%emt 0:00:59]} Na4 {[%emt 0:00:00]} 46. Bxa6 {[%emt 0:00:28]} Ra8 {[%emt 0:00:00]} (46... Nxb2 $11 47. Bxb5 Rb8) 47. Bxb5 $14 {[%emt 0:00:50] And now Bb4 would win.} Rb8 {[%emt 0:00:00]} 48. Be3 $16 {[%emt 0:00:25]} (48. Bxa4 $2 {loses.} Rxb2+ 49. Ka1 Rxd2+ 50. Kb1 Rxg2 $19) 48... Rxb5 {[%emt 0:00:00]} (48... Bxe3 $16 {was called for.} 49. Bxa4 c3) 49. Bxd4 {[%emt 0:00:01] aiming for Rc2. KRB-KRN} Rd5 {[%emt 0:00:00]} 50. Rd2 {[%emt 0:00:10]} Rb5 $2 {[%emt 0:00:00]} (50... Rd8 51. Kb1 f6) 51. Rc2 $18 {[%emt 0:00:30] White is clearly winning.} Nc5 {[%emt 0:00:00]} 52. Bxc5 {[%emt 0:00:16]} Rxc5 {[%emt 0:00:00]} 53. a4 {[%emt 0:00:05]} Kf8 {[%emt 0:00:00]} 54. Ka3 {[%emt 0:00:01] White used his chance.   Weighted Error Value: White=0.23 (precise) /Black=0.33.  Missed win:     	---       	Black=1      Mistake:       	White=8     	Black=7      Inaccurate:     	White=5     	Black=5      OK:         	White=12    	Black=9      Best:        	White=4     	Black=2      Strong:       	---       	Black=2} 1-0

[Event "MCC Labor Day Schev 2024"]
[Site "New York"]
[Date "2024.09.02"]
[Round "7.3"]
[White "Patel, Maahir M"]
[Black "Sarkar, Justin"]
[Result "0-1"]
[ECO "C18"]
[WhiteElo "2005"]
[BlackElo "2276"]
[Annotator "TA"]
[PlyCount "70"]
[EventDate "2024.08.28"]
[EventType "schev"]
[EventCountry "USA"]
[SourceTitle "playchess.com"]
[Source "ChessBase"]
[SourceQuality "1"]
[TimeControl "5400+30"]

{[%evp 19,70,28,30,-43,-47,-47,-37,-40,-36,-43,-37,-39,125,120,155,157,156,156,156,158,156,0,0,0,0,0,0,0,0,0,0,0,0,0,0,0,0,0,0,-32,-32,-34,-27,-32,-31,-751,-751,-745,-738,-745,-745,-741,-734]} 1. e4 {[%emt 0:00:01]} e6 {[%emt 0:01:14]} 2. d4 {[%emt 0:00:10]} d5 {[%emt 0:00:06]} 3. Nc3 {[%emt 0:00:38]} Bb4 {[%emt 0:00:20]} 4. e5 {[%emt 0:00:08]} c5 {[%emt 0:00:28]} 5. a3 {[%emt 0:00:03]} Bxc3+ {[%emt 0:00:10]} 6. bxc3 {[%emt 0:00:05]} Ne7 {[%emt 0:00:27]} 7. Qg4 {[%emt 0:00:04]} O-O {[%emt 0:03:18][%cal Bh8f8,Bf8f6,Bf6f7][%mdl 32]} 8. Bd3 {[%emt 0:00:58]} f5 {[%emt 0:00:09]} 9. exf6 {[%emt 0:00:06]} Rxf6 {[%emt 0:00:07]} 10. Bg5 {[%emt 0:00:35]} Rf7 $1 {[%emt 0:00:39][%cal Oe6e5]} (10... e5 11. Qh4 e4 12. Bxf6 $16) 11. Qg3 {[%emt 0:01:59]} ({Much weaker is} 11. dxc5 e5 12. Qh4 e4 13. Bxe7 Rxe7 $15) ({White should try} 11. Qh5 $11 g6 12. Qd1) 11... Nbc6 $15 {[%emt 0:08:56]} 12. Nf3 {[%emt 0:00:48]} c4 {[%emt 0:17:00]} 13. Be2 {[%emt 0:01:47] Black is slightly better.} Qa5 $1 {[%emt 0:00:56]} 14. Bd2 {[%emt 0:01:04]} Nf5 {[%emt 0:00:22][%cal Be7f5,Bf5h6,Bh6f7][%mdl 32]} 15. Qh3 {[%emt 0:00:51] [#] Strongly threatening Ng5.} e5 $2 {[%emt 0:12:47] [#]} 16. g4 $1 $16 {[%emt 0:10:01]} exd4 {[%emt 0:08:26]} 17. Ng5 {[%emt 0:02:12]} ({Inferior is} 17. gxf5 Bxf5 18. Qg3 dxc3 $17) 17... Nh6 {[%emt 0:01:45]} 18. Nxf7 {[%emt 0:00:17]} Nxf7 {[%emt 0:00:08]} 19. cxd4 {[%emt 0:00:36]} Qb6 {[%emt 0:00:53]} 20. Qe3 {[%emt 0:02:01]} (20. c3 $16) 20... Bd7 $1 $11 {[%emt 0:00:51][%cal Oa8e8] ...Re8! is the strong threat.} 21. c3 $1 {[%emt 0:04:38]} Re8 {[%emt 0:01:26]} 22. Qf3 $1 {[%emt 0:00:57][%cal Oe1g1] aiming for 0-0!} Nxd4 {[%emt 0:27:45]} 23. cxd4 {[%emt 0:00:25]} Qxd4 {[%emt 0:00:07]} 24. Bc3 {[%emt 0:01:24]} Qd3 {[%emt 0:05:01] Really sharp!} 25. Kf1 {[%emt 0:01:08]} Rxe2 $40 {[%emt 0:00:45][%mdl 128] Black has some attack.} 26. Qxe2 {[%emt 0:03:06]} Qxc3 {[%emt 0:02:16]} 27. Kg2 {[%emt 0:00:48]} Ng5 {[%emt 0:00:18]} 28. Qe3 {[%emt 0:03:35]} Qf6 {[%emt 0:00:14]} 29. Rhd1 {[%emt 0:04:27]} (29. Qxa7 $2 {is the wrong capture.} Qf3+ (29... Bxg4 $2 30. Qb8+ Kf7 31. h4 $19) 30. Kf1 Qxh1+ $19) 29... Bc6 {[%emt 0:02:25]} 30. Rd4 {[%emt 0:03:57]} (30. Qxa7 $2 d4+ (30... Qf3+ $2 31. Kf1 $17) 31. Kf1 Ne6 $19) 30... Ne6 {[%emt 0:02:20]} 31. Rad1 {[%emt 0:00:04]} Nxd4 {[%emt 0:00:17]} 32. Qxd4 {[%emt 0:00:15][%mdl 8192]} (32. Rxd4 $15 b5 33. g5) 32... Qxd4 $19 {[%emt 0:00:46] Black is clearly winning.} 33. Rxd4 {[%emt 0:00:05]} c3 {[%emt 0:00:47] ( -> ...c2)} 34. Rd1 {[%emt 0:00:18]} d4+ {[%emt 0:00:14]} 35. Kf1 {[%emt 0:00:09] [#]} d3 $1 {[%emt 0:00:34][%mdl 512] What a bad dream for White.   Weighted Error Value: White=0.34/Black=0.11 (very precise) .  Loses game:     	White=1     	---        Mistake:       	White=1     	Black=1      Inaccurate:     	White=1     	---        OK:         	White=10    	Black=11     Best:        	White=4     	Black=2      Strong:       	White=3     	Black=2} 0-1

[Event "MCC Labor Day Schev 2024"]
[Site "New York"]
[Date "2024.09.02"]
[Round "7.4"]
[White "Gaw, Chloe"]
[Black "Almeida Saenz, Alfonso"]
[Result "1/2-1/2"]
[ECO "D35"]
[WhiteElo "1981"]
[BlackElo "2202"]
[Annotator "TA"]
[PlyCount "95"]
[EventDate "2024.08.28"]
[EventType "schev"]
[EventCountry "USA"]
[SourceTitle "playchess.com"]
[Source "ChessBase"]
[SourceQuality "1"]
[TimeControl "5400+30"]

{[%evp 15,95,10,11,16,16,10,13,15,18,0,7,0,7,-26,-25,-21,-22,-44,-23,-54,-17,-39,-10,-14,-20,-13,-27,-16,-15,-16,0,-3,72,79,90,60,65,37,33,41,22,31,36,27,42,36,61,24,45,0,18,-132,-126,-129,-141,-140,-127,-128,-118,-124,-125,-135,-134,-193,0,0,0,0,0,0,47,55,50,19,42,3,3,0,0,0,3,0]} 1. d4 {[%emt 0:00:01]} d5 {[%emt 0:03:10]} 2. c4 {[%emt 0:00:02]} e6 {[%emt 0:00:05]} 3. Nc3 {[%emt 0:00:07]} Nf6 {[%emt 0:00:08]} 4. cxd5 {[%emt 0:00:04]} exd5 {[%emt 0:00:08]} 5. Bg5 {[%emt 0:00:04]} c6 {[%emt 0:00:26]} 6. e3 {[%emt 0:00:03]} Be7 {[%emt 0:00:24]} 7. Bd3 {[%emt 0:00:05]} h6 {[%emt 0:02:21]} 8. Bh4 {[%emt 0:00:06]} O-O {[%emt 0:00:25]} 9. Nge2 {[%emt 0:00:29]} Ne4 {[%emt 0:00:51] [#] aiming for ...Nxc3.} 10. Bxe7 {[%emt 0:00:19]} Qxe7 {[%emt 0:00:07]} 11. Bxe4 {[%emt 0:00:25]} dxe4 {[%emt 0:00:07]} 12. Ng3 {[%emt 0:01:45]} f5 {[%emt 0:00:07]} 13. O-O {[%emt 0:01:16]} Be6 {[%emt 0:00:13]} 14. d5 {[%emt 0:09:46]} cxd5 {[%emt 0:01:26]} 15. Nxd5 {[%emt 0:00:33]} Qf7 {[%emt 0:00:07]} 16. Nc3 {[%emt 0:05:56]} Nc6 {[%emt 0:00:20][%cal Bb8c6,Bc6e5,Be5d3][%mdl 32]} 17. Qh5 {[%emt 0:03:09]} Qf6 {[%emt 0:05:24]} 18. Rfd1 {[%emt 0:05:40]} Ne5 {[%emt 0:01:03]} 19. Nd5 {[%emt 0:05:26][%cal Bc3d5,Bd5c7,Bc7b5,Bb5d4][%mdl 32]} Qf7 {[%emt 0:00:41]} 20. Qxf7+ {[%emt 0:05:38]} Kxf7 {[%emt 0:00:11]} 21. Nc7 {[%emt 0:04:17]} Rad8 {[%emt 1:23:16]} 22. Nb5 {[%emt 0:02:39]} Nd3 {[%emt 0:00:00]} 23. Nd4 {[%emt 0:03:16]} Kf6 {[%emt 0:00:00]} ({But not} 23... Nxb2 $6 24. Rdb1 Nd3 25. Rxb7+ Rd7 26. Rxd7+ Bxd7 27. Rb1 $16 (27. Ndxf5 Kg6 $14)) (23... g6 $11) 24. Nh5+ $16 {[%emt 0:02:21]} Ke5 {[%emt 0:00:00]} 25. Nxg7 {[%emt 0:04:39]} Bc8 {[%emt 0:00:00][%cal Of5f4]} 26. f4+ {[%emt 0:14:26]} Kf6 {[%emt 0:00:00]} 27. Nh5+ {[%emt 0:00:10] A dynamic duo of knights.} Kg6 {[%emt 0:00:00]} 28. Ng3 {[%emt 0:02:17][%cal Bh5g3,Bg3e2,Be2c1][%mdl 32]} Nxb2 {[%emt 0:00:00]} 29. Rdc1 {[%emt 0:03:59]} Nd3 {[%emt 0:00:00]} 30. Rc4 {[%emt 0:01:40]} Rf6 {[%emt 0:00:00]} 31. Nge2 {[%emt 0:02:45]} Rb6 {[%emt 0:00:00]} 32. Nc1 {[%emt 0:02:26]} (32. h3 {is interesting.} Rb2 33. Rc7 Kf6 34. a4) 32... Nb2 {[%emt 0:00:00]} 33. Rc2 {[%emt 0:01:00]} (33. Rc7 $11) 33... Nd1 $17 {[%emt 0:00:00]} 34. Nce2 {[%emt 0:04:11]} Nxe3 {[%emt 0:00:00]} 35. Rc5 {[%emt 0:01:06]} Rbd6 {[%emt 0:00:00][%cal Ob7b6]} 36. h3 {[%emt 0:03:19]} Nd5 {[%emt 0:00:00]} ({And not} 36... Rxd4 37. Nxd4 Rxd4 38. Rxc8 $14) 37. Nb5 {[%emt 0:02:53][%csl LRa7,LRd6] [#]} Rc6 {[%emt 0:00:00]} 38. Rxc6+ {[%emt 0:02:49]} bxc6 {[%emt 0:00:00]} 39. Nxa7 {[%emt 0:00:19]} (39. Nbd4 $17) 39... Ba6 $2 {[%emt 0:00:00]} (39... Bb7 $19 {Hoping for ...Ra8.} 40. Rb1 Rd7) 40. Nxc6 $11 {[%emt 0:00:31]} Rd6 {[%emt 0:00:00]} 41. Ncd4 {[%emt 0:01:45]} Bxe2 {[%emt 0:00:00]} 42. Nxe2 {[%emt 0:00:03][%mdl 4096] Endgame. Strongly threatening Rd1. KRN-KRN} Ra6 {[%emt 0:00:00]} (42... Ne3 $11) 43. a4 $14 {[%emt 0:00:52]} Ra5 {[%emt 0:00:00]} 44. Rd1 {[%emt 0:00:57]} h5 {[%emt 0:00:00][%cal Oh5h4]} 45. Kf2 {[%emt 0:00:57]} h4 {[%emt 0:00:00] The position is equal.} 46. Rd4 {[%emt 0:00:20]} Rc5 {[%emt 0:00:00]} 47. Rd1 {[%emt 0:01:04]} Ra5 {[%emt 0:00:00]} 48. Rd4 {[%emt 0:00:18] Weighted Error Value: White=0.18 (very precise) /Black=0.16 (very precise) .  Missed win:     	---       	Black=1      Mistake:       	White=2     	Black=2      Inaccurate:     	White=8     	Black=2      OK:         	White=13    	Black=19     Best:        	White=3     	Black=4} 1/2-1/2